bitfinex-derivatives/quotes_ETHF0:USTF0_20250123
["timestamp","ask_amount","ask_price","bid_price","bid_amount"]
[1737663174715,3.2078,3229.2,3227.9,3.2078]
[1737663175019,3.2078,3228.6,3227.3,3.2078]
[1737663175219,3.2078,3228.3,3228.1,40.8]
[1737663175517,13.017,3228.2,3224.4,3.2078]
[1737663175706,0.61984,3226.1,3224.8,3.2078]
[1737663175904,3.2078,3227.6,3225.4,3.2078]
[1737663176109,3.7055,3228.1,3225.4,3.2078]
[1737663176110,4.03360109,3228.1,3227.6,0.61954]
[1737663176309,3.09332,3232.3,3227.0,3.2078]
[1737663176310,3.2078,3229.7,3227.0,3.2078]
[1737663176508,1.5469,3231.8,3229.5,3.2078]
[1737663176810,3.2078,3231.8,3230.1,3.2078]
[1737663177009,0.61872,3232.0,3230.8,3.2078]
[1737663177209,0.61898,3230.6,3230.5,3.2078]
[1737663177413,0.00464806,3231.0,3230.5,44.0078]
[1737663177617,0.00464806,3231.0,3230.9,3.2078]
[1737663177817,0.00464806,3231.0,3230.5,3.2078]
[1737663178315,0.00464806,3231.0,3230.9,40.8]
[1737663178519,0.00464806,3231.0,3230.3,0.00464806]
[1737663178915,0.00464806,3231.0,3230.5,3.2078]
[1737663179313,0.00464806,3231.0,3230.3,0.00464806]
[1737663179514,3.2078,3230.4,3230.3,0.00464806]
[1737663179712,3.2078,3230.4,3228.6,0.02377305]
[1737663179921,3.2078,3229.0,3228.6,0.02377305]
[1737663180216,3.2078,3230.7,3228.6,0.02377305]
[1737663180417,1.8094,3230.9,3228.6,0.02377305]
[1737663180418,3.2078,3229.9,3228.6,0.02377305]
[1737663180627,3.2078,3229.3,3227.3,0.4296314]
[1737663180812,0.61947,3228.1,3225.7,3.82772]
[1737663181011,3.2078,3227.5,3225.7,3.2078]
[1737663181211,3.2078,3226.4,3225.1,3.2078]
[1737663181424,3.2078,3225.9,3224.8,3.2078]
[1737663181621,3.82751,3226.8,3224.8,40.8]
[1737663181825,0.61977,3226.5,3224.4,3.2078]
[1737663182018,3.2078,3226.3,3224.4,3.2078]
[1737663182326,0.00464806,3225.7,3224.4,3.2078]
[1737663182521,0.00464806,3225.7,3225.2,3.2078]
[1737663182718,8.06e-06,3225.7,3225.6,3.2078]
[1737663183019,3.2078,3229.0,3225.6,8.2078]
[1737663183220,3.2078,3229.0,3225.1,0.00464806]
[1737663183221,3.2078,3229.0,3227.3,3.2078]
[1737663183422,5.78782771,3229.2,3227.6,40.8]
[1737663183629,4.02628585,3228.9,3227.6,40.8]
[1737663183824,3.2078,3229.4,3227.9,3.2078]
[1737663184015,3.2078,3228.9,3227.6,40.8]
[1737663184326,3.2078,3228.5,3227.9,0.00464806]
[1737663184522,0.00464806,3228.6,3227.9,3.21244806]
[1737663184723,0.00464806,3228.6,3228.1,3.2078]
[1737663184923,0.61916,3229.7,3228.0,3.2078]
[1737663185130,3.2078,3230.2,3228.9,3.2078]
[1737663185321,13.013,3231.3,3228.9,3.2078]
[1737663185322,3.2078,3229.7,3228.9,3.2078]
[1737663185529,3.2078,3230.2,3229.4,3.2078]
[1737663185730,3.2078,3230.6,3230.0,0.61909]
[1737663185926,3.2078,3231.2,3230.5,3.2078]
[1737663186124,0.61878,3231.7,3230.1,0.61906]
[1737663186324,3.2078,3231.7,3230.1,3.2078]
[1737663186624,3.2078,3231.7,3231.1,3.2078]
[1737663186820,0.00464806,3231.2,3230.6,40.8]
[1737663187525,5.00464806,3231.2,3230.6,40.8]
[1737663187724,3.2078,3230.8,3230.0,3.21244806]
[1737663187925,3.2078,3230.8,3230.0,0.00464806]
[1737663188227,0.61904,3230.3,3228.9,0.6193]
[1737663188423,0.6193,3229.0,3228.6,7.40666329]
[1737663188632,3.2078,3229.0,3226.5,3.2078]
[1737663188826,3.2078,3228.3,3225.6,3.2078]
[1737663189032,3.2078,3228.1,3226.9,0.61968]
[1737663189336,0.88778612,3228.2,3228.0,3.2078]
[1737663189538,0.21932325,3228.2,3228.1,3.82726]
[1737663189726,3.2078,3229.8,3228.1,3.2078]
[1737663189929,1.77,3230.2,3228.6,3.2078]
[1737663190130,0.61888,3231.2,3230.0,3.2078]
[1737663190438,2.49046,3231.8,3230.5,0.61899]
[1737663190651,0.00464806,3229.7,3229.4,3.2078]
[1737663190931,0.00464806,3229.7,3228.7,40.8]
[1737663190932,0.00464806,3229.7,3229.6,0.61917]
[1737663191124,3.2078,3231.0,3229.5,3.2078]
[1737663191433,3.2078,3232.7,3230.9,3.2078]
[1737663191629,3.2078,3233.1,3232.1,3.2078]
[1737663191936,3.2078,3233.1,3231.7,40.8]
[1737663191937,3.2078,3233.7,3232.9,3.2078]
[1737663192135,3.2078,3233.3,3232.4,0.61863]
[1737663192337,3.2078,3232.8,3232.3,0.00463915]
[1737663192633,3.2078,3232.7,3232.3,0.00463915]
[1737663192843,3.2078,3232.7,3230.2,3.2078]
[1737663193136,5.00463915,3232.9,3231.2,0.61885]
[1737663193137,0.6186,3232.6,3231.2,0.61885]
[1737663193333,0.00463915,3232.9,3231.8,3.2078]
[1737663193639,0.00463915,3232.9,3232.1,0.61869]
[1737663193936,0.00463915,3232.9,3230.6,1.54743]
[1737663193937,0.00463915,3232.9,3232.4,3.2078]
[1737663194138,0.00463915,3232.9,3232.8,0.61856]
[1737663194432,0.00463915,3232.9,3232.8,3.82636]
[1737663194731,0.00463915,3232.9,3232.8,5.61856]
[1737663194732,9.15e-06,3232.9,3232.8,5.61856]
[1737663194937,3.2078,3235.5,3233.1,3.2078]
[1737663195135,0.005442,3235.9,3234.6,3.2078]
[1737663195335,0.61799,3235.8,3234.7,41.41819]
[1737663195541,0.005442,3235.9,3235.3,3.2078]
[1737663195832,0.005442,3235.9,3235.1,3.2078]
[1737663196135,3.2078,3235.5,3232.9,7.39620591]
[1737663196338,3.2078,3233.8,3232.9,7.39620591]
[1737663196635,3.2078,3234.5,3232.9,7.39620591]
[1737663196833,3.2078,3233.6,3232.9,7.39620591]
[1737663197035,3.2078,3233.6,3233.1,0.61849]
[1737663197231,3.2078,3235.4,3233.3,3.2078]
[1737663197427,3.2078,3235.2,3234.3,3.2078]
[1737663197628,0.005442,3235.9,3234.7,40.8]
[1737663197828,0.00463915,3234.7,3233.0,0.00463915]
[1737663198028,9.15e-06,3234.7,3233.6,3.2078]
[1737663198233,3.2078,3234.0,3232.5,0.61861]
[1737663198433,3.2078,3232.6,3231.6,0.61879]
[1737663198733,0.43034134,3233.9,3231.5,3.2078]
[1737663199043,2.2128139,3232.8,3231.9,3.2078]
[1737663199231,2.2128139,3232.8,3232.3,3.2078]
[1737663199439,0.1432163,3233.8,3232.4,0.00463915]
[1737663199629,3.2078,3234.7,3232.9,0.61854]
[1737663199936,3.2078,3235.6,3234.2,3.2078]
[1737663200133,3.2078,3236.8,3233.3,1.54613]
[1737663200338,1.9487,3237.4,3235.8,3.2078]
[1737663200540,3.2078,3237.1,3235.3,3.2078]
[1737663200734,3.2078,3237.1,3235.8,0.61799]
[1737663200935,0.00463915,3236.2,3236.1,0.61793]
[1737663201239,1.54288,3240.2,3235.8,44.0078]
[1737663201240,3.2078,3238.3,3235.8,44.0078]
[1737663201542,3.2078,3239.2,3237.3,3.2078]
[1737663201738,3.2078,3237.7,3235.8,40.8]
[1737663201934,3.2078,3236.9,3236.1,0.61793]
[1737663202235,1.9445,3240.1,3235.4,5.0094]
[1737663202236,3.2078,3236.2,3235.4,5.0094]
[1737663202443,3.2078,3236.2,3235.5,3.2078]
[1737663202631,3.2078,3238.1,3236.1,3.2078]
[1737663202836,3.2078,3238.9,3237.2,3.2078]
[1737663203030,3.2078,3238.2,3237.3,40.8]
[1737663203235,0.00461008,3237.4,3237.3,40.8]
[1737663203436,0.00461008,3237.4,3237.3,41.4177]
[1737663203650,0.00461008,3237.4,3237.3,40.8]
[1737663203841,3.2078,3237.8,3237.5,0.61765]
[1737663204030,3.2078,3238.3,3237.3,40.8]
[1737663204234,3.2078,3237.8,3237.0,0.00463192]
[1737663204432,3.2078,3237.6,3235.8,3.2078]
[1737663204644,3.2078,3237.6,3236.6,3.2078]
[1737663204944,3.2078,3237.8,3237.2,0.61772]
[1737663205139,3.2078,3237.8,3236.0,3.2078]
[1737663205440,1.54337,3239.2,3233.0,3.2078]
[1737663205441,0.61799,3235.8,3233.0,3.2078]
[1737663205653,3.2078,3234.6,3233.6,0.61841]
[1737663205843,3.2078,3236.1,3234.1,3.2078]
[1737663206143,0.00463192,3237.2,3236.6,1.92e-06]
[1737663206339,0.00463192,3237.2,3233.9,0.3096]
[1737663206340,0.61755,3238.1,3236.7,3.2078]
[1737663206542,3.2078,3237.5,3235.6,3.2078]
[1737663206843,3.2078,3238.3,3236.7,3.2078]
[1737663207145,0.00463192,3237.2,3236.8,0.61779]
[1737663207346,3.2078,3236.9,3235.8,3.2078]
[1737663207532,3.2078,3236.9,3234.0,3.47309]
[1737663207533,3.2078,3235.9,3234.8,1.814]
[1737663207739,3.2078,3236.4,3234.8,1.87582762]
[1737663208045,0.00463192,3237.2,3234.8,1.87582762]
[1737663208046,0.00463192,3237.2,3236.1,3.2078]
[1737663208240,0.61749,3238.5,3237.2,0.61771]
[1737663208436,3.2078,3238.8,3236.5,3.2078]
[1737663208644,0.61752,3238.3,3237.1,0.61774]
[1737663208845,3.2078,3238.0,3236.5,3.2078]
[1737663209039,3.2078,3238.7,3237.1,3.2078]
[1737663209351,3.2078,3237.5,3236.0,3.2078]
[1737663209650,3.2078,3236.9,3235.2,3.2078]
[1737663209834,3.2078,3237.8,3235.6,3.2078]
[1737663210033,3.2078,3237.2,3236.4,0.00463192]
[1737663210239,3.2078,3236.8,3236.4,0.00463192]
[1737663210640,0.61785,3236.6,3234.8,0.06182762]
[1737663210846,3.2078,3235.0,3234.8,0.06182762]
[1737663211049,3.2078,3236.5,3233.6,3.2078]
[1737663211345,3.2078,3236.6,3234.5,3.2078]
[1737663211549,3.2078,3235.9,3233.7,40.86184865]
[1737663211844,3.2078,3234.4,3234.0,0.61832]
[1737663212146,3.2078,3234.4,3233.7,0.06184865]
[1737663212342,3.2078,3234.3,3233.7,0.06184865]
[1737663212538,3.2078,3233.9,3231.6,3.2078]
[1737663212739,3.2078,3231.7,3230.9,3.2078]
[1737663212945,2.50721953,3233.8,3233.7,1.92e-06]
[1737663213243,0.47871944,3231.6,3231.0,0.06190034]
[1737663213446,3.2078,3232.5,3231.0,0.06190034]
[1737663213644,3.2078,3231.9,3231.0,0.06190034]
[1737663213952,3.2078,3231.7,3231.0,0.06190034]
[1737663214241,3.2078,3231.3,3228.9,3.2078]
[1737663214447,3.2078,3230.0,3229.0,0.06193868]
[1737663214840,1.831,3231.5,3229.9,3.2078]
[1737663215139,2.05054788,3231.1,3230.2,3.2078]
[1737663215538,2.05054788,3231.1,3229.8,0.00463973]
[1737663215539,3.2078,3230.9,3229.8,0.00463973]
[1737663215739,3.2078,3229.9,3229.8,0.00463973]
[1737663215939,3.2078,3229.9,3227.8,3.2078]
[1737663216238,0.23961173,3229.9,3227.3,0.6196]
[1737663216435,3.2078,3229.5,3226.9,3.2078]
[1737663216639,3.2078,3230.2,3228.5,0.61938]
[1737663216839,3.2078,3229.8,3228.5,0.00463973]
[1737663217144,3.2078,3229.0,3228.5,0.00463973]
[1737663217350,3.2078,3228.6,3228.5,0.00463973]
[1737663217543,2.02644592,3228.9,3228.5,0.00463973]
[1737663217848,0.47953382,3229.3,3228.9,0.6193]
[1737663218043,0.61898,3230.6,3228.6,3.2078]
[1737663218344,0.00463973,3229.2,3229.1,0.61927]
[1737663218550,3.2078,3232.4,3229.6,3.2078]
[1737663218747,3.2078,3231.7,3230.2,3.2078]
[1737663219044,0.61864,3232.4,3231.6,44.0078]
[1737663219251,3.2078,3233.4,3231.6,44.0078]
[1737663219439,3.2078,3234.0,3232.4,3.2078]
[1737663219751,3.2078,3233.9,3232.3,3.2078]
[1737663219948,0.61858,3232.7,3232.2,0.00463965]
[1737663220144,5.0,3232.7,3232.2,0.00463965]
[1737663220449,0.00463965,3232.8,3232.4,3.2078]
[1737663220755,8.21243965,3232.8,3230.7,3.2078]
[1737663220946,0.00463965,3232.8,3231.1,6.44370333]
[1737663221140,3.21243965,3232.8,3231.0,3.2078]
[1737663221344,3.2078,3231.4,3229.9,3.2078]
[1737663221644,3.2078,3230.5,3229.0,3.2078]
[1737663221847,3.2078,3229.8,3227.4,6.44370333]
[1737663222047,3.2078,3229.2,3228.2,3.2078]
[1737663222247,0.00463965,3231.0,3229.3,3.23590333]
[1737663222447,0.00463965,3231.0,3230.9,3.2078]
[1737663222643,0.00463965,3231.0,3229.9,3.2078]
[1737663222842,3.2078,3230.3,3228.1,3.2078]
[1737663223151,3.2078,3230.7,3229.1,3.23590333]
[1737663223351,0.61916,3229.7,3228.7,3.2078]
[1737663223648,3.2078,3230.7,3228.7,3.2078]
[1737663223841,0.19177249,3229.6,3229.3,3.23590333]
[1737663224044,3.2078,3230.3,3229.3,3.23590333]
[1737663224254,1.9038,3230.9,3229.4,40.8]
[1737663224552,0.00464733,3230.1,3229.9,3.2078]
[1737663224750,0.00464733,3230.1,3229.5,0.00464733]
[1737663224946,0.00464733,3230.1,3230.0,6.44370333]
[1737663225149,1.8858,3231.6,3230.0,3.2078]
[1737663225350,1.8858,3231.6,3230.4,3.2078]
[1737663225550,0.61875,3231.8,3230.6,0.61897]
[1737663225758,0.06188693,3231.7,3231.4,3.2078]
[1737663226051,3.26968693,3231.7,3230.7,6.44370333]
[1737663226251,0.06188693,3231.7,3231.1,6.44370333]
[1737663226451,0.06188693,3231.7,3231.2,0.00464733]
[1737663226952,0.61879,3231.6,3231.2,0.00464733]
[1737663227148,5.06188693,3231.7,3231.2,0.00464733]
[1737663227345,5.06188693,3231.7,3231.3,3.23590333]
[1737663227346,0.06188693,3231.7,3231.3,3.23590333]
[1737663227655,0.00464733,3231.9,3231.2,6.44835066]
[1737663227955,0.00464733,3231.9,3231.2,0.00464733]
[1737663228452,0.61885,3231.3,3231.2,7.33e-06]
[1737663228647,3.82665,3231.3,3231.2,7.33e-06]
[1737663228855,8.82665,3231.3,3231.2,7.33e-06]
[1737663229057,0.61913,3229.8,3229.7,3.2078]
[1737663229250,3.5125,3231.2,3229.7,3.2078]
[1737663229554,1.54728,3231.0,3229.7,3.2078]
[1737663229762,0.61923,3229.3,3229.2,3.2078]
[1737663230254,0.09588921,3229.3,3229.2,3.2078]
[1737663230458,3.2078,3230.4,3229.2,3.2078]
[1737663230459,0.00464733,3229.6,3229.2,3.2078]
[1737663230655,0.61929,3229.0,3228.9,0.00464733]
[1737663231355,0.83505522,3229.0,3228.9,7.33e-06]
[1737663231956,5.83505522,3229.0,3228.9,7.33e-06]
[1737663232459,0.83505522,3229.0,3228.9,7.33e-06]
[1737663232649,5.83505522,3229.0,3228.9,7.33e-06]
[1737663232858,0.83505522,3229.0,3228.9,7.33e-06]
[1737663233164,5.83505522,3229.0,3228.9,7.33e-06]
[1737663233959,1.5485,3228.5,3227.0,3.2078]
[1737663234158,0.6197,3226.9,3226.4,3.2078]
[1737663234356,3.2078,3227.8,3226.4,3.2078]
[1737663234660,0.61984,3226.1,3226.0,3.2078]
[1737663235153,0.6197,3226.9,3225.4,3.2078]
[1737663235467,1.70364274,3226.1,3225.7,0.0031104]
[1737663235676,0.61981,3226.3,3225.9,3.2078]
[1737663235853,0.00464733,3226.4,3225.9,3.2078]
[1737663236053,0.00464733,3226.4,3226.3,6.44371799]
[1737663236254,3.2078,3228.9,3226.3,3.2078]
[1737663236556,13.01,3230.2,3228.0,40.8]
[1737663236557,0.61946,3228.1,3228.0,40.8]
[1737663236755,1.07933863,3228.3,3228.0,40.8]
[1737663236963,0.02400239,3228.8,3228.0,44.03591799]
[1737663237159,3.2078,3229.8,3228.2,3.2078]
[1737663237353,13.01,3230.2,3228.9,3.2078]
[1737663237554,0.33563304,3229.7,3229.5,3.23591799]
[1737663237768,13.01,3230.2,3229.1,3.23591799]
[1737663237967,0.00464733,3229.9,3229.0,3.2078]
[1737663238164,0.61933,3228.8,3228.7,0.00464733]
[1737663238662,0.83513086,3228.8,3228.7,0.00464733]
[1737663238861,5.61933,3228.8,3228.7,7.33e-06]
[1737663239167,0.61943,3228.3,3228.0,3.2078]
[1737663239366,0.61942,3228.4,3228.0,3.2078]
[1737663239565,1.54807,3229.4,3228.0,3.2078]
[1737663239566,0.6193,3229.0,3228.0,3.2078]
[1737663239755,3.2078,3229.4,3228.5,3.2078]
[1737663239960,0.551474,3228.8,3228.1,3.2078]
[1737663240169,0.19190915,3228.9,3227.5,3.2078]
[1737663240467,0.61953,3227.8,3227.4,3.23591799]
[1737663240668,0.61953,3227.8,3227.1,6.5862]
[1737663240669,3.2078,3228.6,3227.1,6.5862]
[1737663240858,0.19190915,3228.8,3227.1,6.5862]
[1737663240859,0.61948,3228.0,3227.9,0.0031104]
[1737663241064,0.43154304,3228.6,3227.9,0.0031104]
[1737663241261,0.09594418,3229.0,3227.9,3.23902839]
[1737663241569,0.07195961,3228.7,3228.5,0.61938]
[1737663241764,0.00464733,3229.1,3228.6,6.44371799]
[1737663241964,3.2078,3231.8,3229.0,3.2078]
[1737663242260,3.2078,3231.8,3230.2,3.23591799]
[1737663242261,0.61882,3231.5,3230.2,3.23591799]
[1737663242462,3.2078,3232.0,3230.4,3.2078]
[1737663242655,3.2078,3232.0,3227.8,3.09753]
[1737663242656,0.61881,3231.5,3230.8,6.44371799]
[1737663242863,13.012,3232.3,3231.2,3.2078]
[1737663243059,14.55868,3232.3,3230.5,3.2078]
[1737663243366,13.012,3232.3,3231.7,3.23591799]
[1737663243567,13.012,3232.3,3231.4,3.2078]
[1737663243868,13.012,3232.3,3230.8,0.00464733]
[1737663243869,0.00464733,3231.7,3230.8,0.00464733]
[1737663244055,0.00464733,3231.7,3231.2,3.23591799]
[1737663244262,0.00464733,3231.7,3231.6,3.23591799]
[1737663244659,0.61869,3232.2,3231.6,3.23591799]
[1737663244868,3.2078,3232.7,3231.9,6.44371799]
[1737663245160,3.2078,3233.5,3232.6,3.23591799]
[1737663245365,0.61858,3232.7,3232.6,6.44371799]
[1737663245564,0.61875,3231.8,3231.5,3.2078]
[1737663245768,3.2078,3232.6,3231.1,3.2078]
[1737663245967,0.61882,3231.5,3231.1,3.2078]
[1737663246157,1.54643,3232.8,3231.1,6.44371799]
[1737663246158,0.61887,3231.2,3231.1,6.44371799]
[1737663246360,0.61878,3231.7,3231.6,3.23591799]
[1737663246574,0.61879,3231.6,3231.5,0.00464008]
[1737663246965,3.2078,3232.5,3231.5,6.44835807]
[1737663247163,3.2078,3232.5,3231.8,3.23591799]
[1737663247467,3.2078,3232.5,3231.6,6.44371799]
[1737663247670,0.61877,3231.7,3231.6,3.23591799]
[1737663248069,3.2078,3232.5,3231.5,8e-08]
[1737663248070,0.61879,3231.6,3231.5,8e-08]
[1737663248374,0.61879,3231.6,3229.9,3.2078]
[1737663248375,3.2078,3231.6,3229.9,3.2078]
[1737663248563,1.5476,3230.3,3229.4,3.2078]
[1737663248763,0.61927,3229.1,3229.0,3.23591799]
[1737663248965,3.2078,3229.1,3227.6,3.2078]
[1737663249162,3.2078,3228.3,3227.7,0.06196362]
[1737663249361,0.61942,3228.3,3227.7,0.06196362]
[1737663249672,3.2078,3228.3,3227.7,0.06196362]
[1737663249864,3.82732,3227.8,3227.7,0.0046437]
[1737663250062,0.61952,3227.8,3227.7,3.7e-06]
[1737663250363,0.76346748,3227.8,3227.7,1.78196169]
[1737663250576,0.61952,3227.8,3227.7,1.78196169]
[1737663250762,0.00464008,3228.3,3227.7,1.78196169]
[1737663250959,0.00464008,3228.3,3228.2,1.78195799]
[1737663251166,4.92833,3229.7,3227.9,3.2078]
[1737663251167,3.2078,3229.7,3227.9,3.2078]
[1737663251362,1.54703,3231.5,3229.5,3.2078]
[1737663251558,0.61887,3231.2,3231.1,1.78195799]
[1737663251764,3.2078,3232.3,3231.4,1.78195799]
[1737663251965,3.2078,3231.9,3230.9,1.78195799]
[1737663252163,3.2078,3231.5,3229.9,3.2078]
[1737663252369,3.2078,3232.1,3230.5,3.2078]
[1737663252670,0.61887,3231.2,3231.1,8e-08]
[1737663252868,0.61908,3230.1,3230.0,40.8]
[1737663253066,3.2078,3230.2,3229.4,3.2078]
[1737663253266,0.61929,3229.0,3228.9,3.2078]
[1737663253468,0.61936,3228.6,3228.5,3.2078]
[1737663253673,0.61936,3228.7,3228.5,3.2078]
[1737663253869,3.2078,3230.2,3228.5,3.2078]
[1737663254072,0.6191,3230.0,3229.9,3.2078]
[1737663254269,1.54735,3230.9,3229.3,3.2078]
[1737663254465,0.61921,3229.4,3229.3,3.2078]
[1737663254775,0.61929,3229.0,3228.9,3.2078]
[1737663255271,1.54797,3229.6,3228.7,3.2078]
[1737663255471,3.2078,3230.1,3228.6,0.0031044]
[1737663255670,0.11987378,3229.6,3228.7,3.2078]
[1737663255976,3.2078,3230.2,3228.6,0.0031044]
[1737663256168,0.00464008,3230.3,3228.8,3.2078]
[1737663256169,0.61931,3228.9,3228.8,3.2078]
[1737663256367,0.61919,3229.6,3228.8,8.2078]
[1737663256667,0.00464008,3230.3,3229.2,3.2078]
[1737663256860,0.61911,3229.9,3229.2,3.2078]
[1737663257073,0.00464008,3230.3,3229.2,3.2078]
[1737663257376,0.61934,3228.7,3228.6,0.0031044]
[1737663257570,3.2078,3231.1,3228.6,3.2109044]
[1737663257773,3.2078,3230.6,3228.6,3.2109044]
[1737663257967,29.897,3243.3,3227.7,3.2078]
[1737663257968,3.2078,3229.4,3227.7,3.2078]
[1737663258178,0.11981288,3229.7,3228.4,3.2078]
[1737663258379,0.78711111,3229.3,3228.4,0.6194]
[1737663258572,3.2078,3228.9,3227.5,3.8239]
[1737663258877,3.2078,3227.8,3226.8,3.2078]
[1737663259073,1.5489,3227.6,3226.4,3.2078]
[1737663259377,3.63948279,3227.5,3226.8,3.2078]
[1737663259574,3.82748,3227.0,3226.1,3.2078]
[1737663259776,3.2078,3227.1,3226.1,3.2078]
[1737663259970,3.2078,3226.4,3225.6,3.2078]
[1737663260164,0.00464799,3227.6,3225.6,3.2078]
[1737663260165,0.61992,3225.7,3225.6,3.2078]
[1737663260371,0.2882118,3226.3,3225.6,3.2078]
[1737663260571,3.2078,3226.7,3226.2,3.2078]
[1737663260773,3.2078,3228.0,3226.2,3.2078]
[1737663260964,0.57579836,3228.1,3227.6,3.2078]
[1737663261168,0.61927,3229.2,3228.1,0.61945]
[1737663261375,0.55160008,3229.2,3229.0,3.2078]
[1737663261577,3.66357894,3229.7,3228.0,40.8]
[1737663261778,0.00464799,3229.0,3228.0,40.8]
[1737663261977,0.00464799,3229.0,3227.3,3.2078]
[1737663262273,0.1678763,3228.9,3228.3,3.2078]
[1737663262473,0.00464799,3229.0,3228.5,40.8]
[1737663262672,0.61936,3228.6,3228.5,40.8]
[1737663262977,0.02398382,3228.6,3227.3,3.2078]
[1737663263178,3.2078,3228.3,3227.3,3.8274]
[1737663263475,3.2078,3228.3,3227.3,3.2078]
[1737663263676,0.61948,3228.0,3227.3,3.82741]
[1737663263875,0.79139091,3228.2,3227.4,40.8]
[1737663264180,3.2078,3228.9,3227.7,3.2078]
[1737663264475,0.61934,3228.8,3228.1,3.2078]
[1737663264672,0.59945204,3228.9,3228.1,3.2078]
[1737663264871,0.61941,3228.4,3228.1,3.2078]
[1737663265064,0.61939,3228.5,3228.1,3.2078]
[1737663265264,0.61942,3228.4,3227.7,3.2078]
[1737663265479,0.00464799,3229.0,3228.1,3.2078]
[1737663265782,0.55147475,3228.4,3227.7,3.2078]
[1737663266079,3.2078,3228.6,3227.7,3.2078]
[1737663266474,0.00464799,3229.0,3228.5,3.2078]
[1737663266677,3.2078,3230.4,3228.9,3.2078]
[1737663266877,0.61924,3229.3,3228.9,3.2078]
[1737663267179,0.61929,3229.0,3228.6,40.8]
[1737663267374,1.54773,3230.1,3228.6,40.8]
[1737663267375,0.61931,3228.9,3228.6,40.8]
[1737663267576,0.04795648,3229.2,3228.3,3.2078]
[1737663267773,3.2078,3229.2,3227.6,3.2078]
[1737663267979,3.2078,3228.5,3227.4,3.6208]
[1737663268179,0.61938,3228.5,3228.4,7.99e-06]
[1737663268373,3.82718,3228.5,3228.4,7.99e-06]
[1737663268679,9.0428769,3228.5,3228.4,7.99e-06]
[1737663268879,1.54895,3227.5,3226.1,3.2078]
[1737663269071,3.2078,3226.9,3226.1,3.2078]
[1737663269377,1.54895,3227.5,3224.8,3.7869]
[1737663269378,1.5495,3226.4,3224.8,3.7869]
[1737663269572,3.2078,3225.0,3223.0,3.2078]
[1737663269777,4.75756,3225.8,3224.2,3.2078]
[1737663269972,1.8250294,3224.9,3224.8,3.2078]
[1737663270177,1.8250294,3224.9,3224.4,3.2078]
[1737663270370,3.2078,3225.2,3224.4,3.2078]
[1737663270576,5.51237358,3224.8,3223.8,3.2078]
[1737663270970,3.2078,3223.9,3223.1,3.2078]
[1737663271174,3.2078,3223.9,3222.7,3.2078]
[1737663271379,3.2078,3223.4,3222.7,3.2078]
[1737663271672,3.2078,3222.9,3222.3,0.62057]
[1737663271980,2.9540194,3223.3,3222.6,3.2078]
[1737663272175,0.00464799,3223.4,3223.1,0.62041]
[1737663272379,0.00464799,3223.4,3223.0,3.2078]
[1737663272577,0.00464799,3223.4,3222.2,3.7829]
[1737663272578,0.00464799,3223.4,3222.5,3.2078]
[1737663272775,0.00464799,3223.4,3223.0,3.2078]
[1737663273080,7.99e-06,3223.4,3223.3,0.62038]
[1737663273280,3.2078,3224.8,3223.0,8.2078]
[1737663273575,5.94525463,3224.4,3222.7,0.62048]
[1737663273776,3.2078,3223.7,3222.6,3.2078]
[1737663273984,3.2078,3224.3,3223.5,0.62034]
[1737663274177,3.2078,3224.0,3223.0,3.2078]
[1737663274377,3.2078,3225.0,3223.6,3.2078]
[1737663274580,2.40074848,3225.8,3224.5,3.2078]
[1737663274776,0.09618684,3226.1,3225.5,0.61995]
[1737663274976,3.2078,3226.6,3225.3,40.8]
[1737663275374,0.00464799,3226.1,3225.3,40.8]
[1737663275587,0.61998,3225.4,3225.3,40.8]
[1737663275980,3.37600435,3225.4,3225.3,40.8]
[1737663276181,3.2078,3225.9,3225.3,40.8]
[1737663276888,0.62004,3225.1,3225.0,0.00464799]
[1737663277384,4.04413626,3225.1,3225.0,7.99e-06]
[1737663278782,3.42409626,3225.1,3225.0,7.99e-06]
[1737663279076,3.2078,3225.6,3225.0,7.99e-06]
[1737663279282,0.61999,3225.4,3225.1,40.8]
[1737663279487,0.09612422,3225.5,3225.0,7.99e-06]
[1737663279682,3.82784,3225.1,3225.0,7.99e-06]
[1737663280185,3.92397912,3225.1,3225.0,7.99e-06]
[1737663280380,3.82784,3225.1,3225.0,7.99e-06]
[1737663280879,5.94009955,3225.1,3225.0,7.99e-06]
[1737663281386,0.62011,3224.8,3223.8,3.2078]
[1737663281586,2.11225955,3225.1,3224.2,0.62021]
[1737663281781,2.11225955,3225.1,3223.8,3.2078]
[1737663281982,3.2078,3224.4,3223.2,3.2078]
[1737663282183,0.62027,3223.9,3223.2,3.8282]
[1737663282494,0.19244529,3223.8,3222.8,10.7686]
[1737663282687,0.62034,3223.6,3222.8,8.18126]
[1737663282882,0.6203,3223.8,3222.5,0.62052]
[1737663283184,0.04812625,3223.5,3222.4,3.2078]
[1737663283390,0.52904108,3223.7,3222.8,3.2078]
[1737663283592,0.6204,3223.3,3222.4,3.82834]
[1737663283792,3.2078,3223.1,3222.4,3.2078]
[1737663283992,0.62044,3223.0,3222.4,3.2078]
[1737663284286,3.2078,3222.6,3221.4,4.12244]
[1737663284479,3.2078,3222.1,3220.7,3.2078]
[1737663284684,0.86611453,3222.5,3221.1,3.2078]
[1737663284888,3.2078,3222.6,3221.1,3.2078]
[1737663285185,0.00465549,3222.1,3221.9,3.2078]
[1737663285382,3.2078,3223.4,3222.0,0.62063]
[1737663285583,0.62034,3223.6,3222.9,3.82825]
[1737663285780,3.2078,3224.1,3222.5,3.2078]
[1737663285980,2.59271507,3223.5,3222.6,40.8]
[1737663286188,0.52972567,3224.0,3223.0,3.2078]
[1737663286394,3.2078,3224.9,3224.2,0.6202]
[1737663286696,2.665291,3225.1,3224.5,3.2078]
[1737663286993,3.2078,3226.3,3224.6,40.8]
[1737663287182,0.00465549,3225.1,3225.0,0.62005]
[1737663287488,0.00465549,3225.1,3224.7,3.2078]